[Event "44th Chess Olympiad Open 2022"]
[Site "Chennai"]
[Date "2022.07.29"]
[Round "1.57"]
[White "Bah, Ebrima"]
[Black "Kiik, Kalle"]
[Result "0-1"]
[WhiteElo "2078"]
[BlackElo "2365"]
[Annotator "TA"]
[PlyCount "146"]
[EventDate "2022.??.??"]
[TimeControl "60"]

{[%evp 12,146,1,-28,-36,-50,-37,-37,-9,-4,-6,-28,-18,-30,-27,-23,-24,-34,-27,
-33,-14,-27,-17,-32,-12,-24,-12,-26,-17,-64,-56,-59,-56,-63,-46,-71,-28,-40,
-40,-110,-104,-140,-142,-133,-96,-172,-142,-149,-150,-143,-141,-143,-125,-116,
-122,-117,-117,-147,-129,-147,-147,-166,-163,-173,-166,-207,-193,-235,-189,
-243,-189,-185,-185,-246,-201,-305,-280,-408,-244,-323,-371,-432,-441,-463,
-463,-463,-463,-456,-456,-456,-448,-448,-362,-504,-390,-271,-253,-1183,-1065,
-1906,-1729,-3125,-3040,-3059,-1818,-2712,-2488,-2645,-2640,-1340,-2318,-2003,
-2279,-2022,-1816,-12838,-1835,-12831,-12827,-12840,-12836,-12843,-12843,
-12845,-12845,-12850,-27999,-27999,-27999,-27999,-27999,-27999,-27999,-27999,
-27999,-27999,-27999]} 1. e4 {[%emt 0:00:04]} c5 {[%emt 0:00:09]} 2. Nf3 {
[%emt 0:00:13]} Nc6 {[%emt 0:00:58]} 3. d4 {[%emt 0:00:30]} cxd4 {[%emt 0:00:
00]} 4. Nxd4 {[%emt 0:00:18]} e5 {[%emt 0:01:31]} 5. Nxc6 {[%emt 0:02:28]} bxc6
{[%emt 0:00:18]} 6. Bc4 {[%emt 0:00:47]} Nf6 {[%emt 0:02:25]} 7. Bg5 {[%emt 0:
00:00]} Qa5+ {[%emt 0:07:19] B32: Sicilian: Löwenthal and Kalashnikov
Variations.} 8. Qd2 {[%emt 0:01:49]} Bb4 {[%emt 0:01:51]} 9. c3 $1 {[%emt 0:00:
00]} Be7 {[%emt 0:00:12] Black is slightly better.} 10. Bxf6 {[%emt 0:00:35]}
Bxf6 {[%emt 0:01:03]} 11. b4 {[%emt 0:01:17]} Qc7 {[%emt 0:01:15] [#]} 12. a4
$146 {[%emt 0:02:08]} ({Predecessor:} 12. b5 cxb5 13. Bxf7+ Ke7 14. O-O Bb7 15.
Bd5 Bxd5 16. Qxd5 Qc6 17. Rd1 Qxd5 18. Rxd5 {0-1 (77) Zeitler,J (1683)-Mock,M 
(1969) Zirndorf 2017}) 12... O-O {[%emt 0:00:47]} 13. O-O {[%emt 0:00:04]} Bb7
{[%emt 0:00:26][%cal Yd7d5]} 14. Na3 {[%emt 0:00:55]} Rad8 {[%emt 0:00:36]} 15.
Qe3 {[%emt 0:00:49]} d5 {[%emt 0:02:16]} 16. Bd3 {[%emt 0:02:01]} Qb8 {[%emt 0:
00:00]} 17. a5 {[%emt 0:01:42]} h6 {[%emt 0:02:29]} 18. Nc2 {[%emt 0:03:13]}
Bg5 {[%emt 0:01:49]} 19. Qe2 {[%emt 0:04:04]} Bc8 {[%emt 0:05:04]} 20. f3 {
[%emt 0:03:09]} (20. Rfe1 $11) 20... Rfe8 $15 {[%emt 0:08:05]} 21. Rad1 {
[%emt 0:00:24]} Qc7 {[%emt 0:03:06]} 22. Kh1 {[%emt 0:03:02]} Be6 {[%emt 0:00:
00]} 23. Ne3 {[%emt 0:01:58]} Bxe3 {[%emt 0:08:46]} 24. Qxe3 {[%emt 0:00:13]}
d4 {[%emt 0:00:05]} 25. Qd2 {[%emt 0:01:36] [#]} (25. Qe1 $15) 25... c5 $1 $17
{[%emt 0:02:18]} 26. c4 {[%emt 0:05:00]} cxb4 {[%emt 0:01:12]} 27. Qxb4 {
[%emt 0:01:10]} Rb8 {[%emt 0:00:31]} 28. Qa3 {[%emt 0:00:39]} (28. Qa4 $17)
28... Qe7 {[%emt 0:01:56]} ({Don't play} 28... Bxc4 29. Rc1 $16) 29. Qxe7 {
[%emt 0:04:42]} Rxe7 {[%emt 0:00:38]} 30. Rb1 {[%emt 0:00:01]} Reb7 {[%emt 0:
00:00]} 31. Rb5 {[%emt 0:01:05] [#]} a6 $1 {[%emt 0:05:38]} 32. Rxb7 {[%emt 0:
00:00]} ({Don't blunder} 32. Rxe5 $2 Rb3 33. Be2 d3 $19) 32... Rxb7 {[%emt 0:
00:00] Endgame KRB-KRB} 33. c5 {[%emt 0:00:17]} Rb3 {[%emt 0:00:40]} 34. Bxa6 {
[%emt 0:00:38]} Ra3 {[%emt 0:00:09]} 35. c6 {[%emt 0:01:11]} Rxa5 {[%emt 0:00:
08]} 36. Bb7 {[%emt 0:02:23]} Rc5 {[%emt 0:00:13] aiming for ...d3.} 37. Kg1 {
[%emt 0:01:00]} Kf8 {[%emt 0:02:52]} 38. Rd1 {[%emt 0:01:16]} Ke7 {[%emt 0:04:
52]} 39. Rd2 {[%emt 0:00:10]} Kd6 {[%emt 0:00:41]} 40. Kf2 {[%emt 0:00:00]} (
40. h4 $142) 40... Bb3 {[%emt 0:01:20]} 41. Rb2 {[%emt 0:33:51]} Rc3 {[%emt 0:
31:50]} 42. Ke2 {[%emt 0:00:19]} (42. h4 {only move.}) 42... f6 {[%emt 0:03:18]
} 43. Ba8 {[%emt 0:01:23]} (43. Ba6 {might work better.}) 43... g5 $19 {
[%emt 0:00:57]} 44. h3 {[%emt 0:01:54]} (44. g4 {keeps fighting.}) 44... Ba4 {
[%emt 0:04:17]} (44... h5 $142 45. Kd2 h4) 45. Bb7 {[%emt 0:00:41]} h5 {
[%emt 0:04:25][%cal Yh6h5,Yh5h4]} ({And not} 45... Bxc6 46. Bxc6 Kxc6 47. Ra2
$17) 46. Kd2 {[%emt 0:01:11]} h4 {[%emt 0:00:35]} 47. Ra2 {[%emt 0:00:45]} Bxc6
{[%emt 0:02:11]} 48. Ra6 {[%emt 0:02:17]} Kc7 {[%emt 0:00:00]} 49. Bxc6 {
[%emt 0:00:13]} Rxc6 {[%emt 0:00:06] KR-KR} 50. Ra8 {[%emt 0:00:00]} Rb6 {
[%emt 0:02:26] Strongly threatening ...Rb2+.} 51. Ra2 {[%emt 0:00:37]} Kd6 {
[%emt 0:00:40]} 52. Rc2 {[%emt 0:00:29]} Ra6 {[%emt 0:00:24] Inhibits Ra2.} 53.
Ke2 {[%emt 0:00:17]} Ke6 {[%emt 0:02:26] Threatens to win with ...f5.} 54. Kd3
$2 {[%emt 0:00:57]} (54. Rc8) 54... f5 {[%emt 0:01:31]} 55. Rb2 {[%emt 0:00:38]
} Ra3+ {[%emt 0:00:31]} 56. Kd2 {[%emt 0:00:25]} fxe4 {[%emt 0:00:00]} 57. fxe4
{[%emt 0:00:24]} Rg3 {[%emt 0:00:20]} 58. Kd1 {[%emt 0:01:55]} Rd3+ {[%emt 0:
05:03]} 59. Kc2 {[%emt 0:01:28]} Re3 {[%emt 0:00:29] And now ... Re2+ would
win.} 60. Rb6+ {[%emt 0:00:39]} Kf7 {[%emt 0:00:25]} 61. Rb7+ {[%emt 0:01:35]}
Kg6 {[%emt 0:00:47]} 62. Rb6+ {[%emt 0:00:36]} Kh5 {[%emt 0:00:00] Hoping for .
..g4.} 63. Kd1 {[%emt 0:00:52]} Rxe4 {[%emt 0:00:19]} (63... g4 $142 64. hxg4+
Kg5) 64. Kd2 {[%emt 0:01:34]} Re3 {[%emt 0:00:10]} 65. Re6 {[%emt 0:00:47]} Rg3
{[%emt 0:00:51]} 66. Rxe5 {[%emt 0:00:21]} Rxg2+ {[%emt 0:00:00]} 67. Kd3 {
[%emt 0:01:08]} Rg3+ {[%emt 0:00:16]} 68. Kxd4 {[%emt 0:00:12]} Rxh3 {[%emt 0:
00:03]} 69. Ke4 {[%emt 0:01:07] Black mates.} Kg4 {[%emt 0:00:00]} 70. Re8 {
[%emt 0:00:45]} Rh1 {[%emt 0:00:19]} 71. Rg8 {[%emt 0:00:11]} Re1+ {[%emt 0:00:
08]} 72. Kd3 {[%emt 0:00:24]} h3 {[%emt 0:00:10]} 73. Kd2 {[%emt 0:00:05]} Re5
{[%emt 0:00:06] Weighted Error Value: White=0.62/Black=0.11 (very precise)} 0-1

[Event "44th Chess Olympiad Open 2022"]
[Site "Chennai"]
[Date "2022.07.29"]
[Round "1.57"]
[White "Garber, Ousainou"]
[Black "Volodin, Aleksandr"]
[Result "0-1"]
[WhiteElo "1772"]
[BlackElo "2454"]
[Annotator "TA"]
[PlyCount "104"]
[EventDate "2022.??.??"]
[TimeControl "60"]

{[%evp 11,103,-8,20,-11,-14,-12,-8,-8,0,-2,-11,-13,0,0,0,-15,-12,-75,-77,-77,
-64,-46,-33,-41,-39,-78,-21,-35,-43,-34,0,0,12,13,12,10,17,-79,-39,-158,-160,
-146,-148,-172,-168,-198,-198,-241,-207,-207,-196,-199,-199,-210,-185,-176,
-152,-252,-246,-467,-454,-456,-458,-686,-656,-1080,-995,-1120,-682,-1714,-1543,
-2891,-2605,-29988,-29987,-29990,-29991,-29991,-29992,-29992,-29993,-29993,
-29994,-29994,-29995,-29996,-29997,-29997,-29998,-29998,-29997,-29997,-29998,
-29999]} 1. d4 {[%emt 0:00:07]} Nf6 {[%emt 0:00:07]} 2. Nf3 {[%emt 0:00:38]} e6
{[%emt 0:00:34]} 3. e3 {[%emt 0:00:24]} c5 {[%emt 0:00:10]} 4. c3 {[%emt 0:00:
00]} b6 {[%emt 0:00:07]} 5. Nbd2 {[%emt 0:00:55]} Bb7 {[%emt 0:00:06]} 6. Bd3 {
[%emt 0:00:53]} Be7 {[%emt 0:00:10]} 7. Qc2 {[%emt 0:00:44] A47:1 d4 Nf6 2 Nf3
b6: Torre, London and Colle Systems.} d5 {[%emt 0:00:24] [#]} 8. b3 $146 {
[%emt 0:00:32]} ({Predecessor:} 8. O-O c4 9. Be2 O-O 10. Ne5 Nc6 11. Nxc6 Bxc6
12. f3 b5 13. e4 a5 14. e5 {1-0 (85) Toma,R (2047)-Tiron,L (1672) Voineasa 2010
}) 8... Nc6 {[%emt 0:00:08]} 9. O-O {[%emt 0:00:45] The position is equal.} Qc7
{[%emt 0:00:38]} 10. Re1 {[%emt 0:01:12]} Rc8 {[%emt 0:00:13]} 11. Bb2 {
[%emt 0:02:00]} O-O {[%emt 0:00:22]} 12. Rac1 {[%emt 0:02:22]} Qb8 {[%emt 0:00:
00]} 13. Qb1 {[%emt 0:00:33]} h6 {[%emt 0:00:13]} 14. e4 {[%emt 0:00:19]} (14.
h3 $11) 14... dxe4 $17 {[%emt 0:02:04]} 15. Nxe4 {[%emt 0:00:52]} cxd4 {
[%emt 0:00:14]} 16. cxd4 {[%emt 0:01:43]} Nb4 {[%emt 0:02:12]} 17. Nxf6+ {
[%emt 0:04:56]} Bxf6 {[%emt 0:00:21]} 18. Ne5 {[%emt 0:02:30]} Rcd8 {[%emt 0:
00:00] Prevents Nd7.} (18... Nxd3 $17 19. Qxd3 Qd6) 19. Bb5 {[%emt 0:04:02]}
Qd6 {[%emt 0:03:40]} 20. a3 {[%emt 0:02:36]} Qd5 {[%emt 0:06:35][%csl Gb7]
[%cal Rd5g2]} 21. Bf1 {[%emt 0:00:17]} Nc6 {[%emt 0:00:10]} 22. Bc4 {[%emt 0:
00:00]} Qd6 {[%emt 0:00:29] [#]} 23. Nxf7 $1 {[%emt 0:10:03]} Rxf7 {[%emt 0:00:
00]} 24. Bxe6 {[%emt 0:01:03]} (24. Rxe6 $11 {keeps the balance.} Qf4 {[#]} 25.
Rxc6 $1 Bxc6 26. Bxf7+ Kxf7 27. Rxc6) 24... Ne7 {[%emt 0:01:29][%cal Yf6g5]}
25. Rcd1 {[%emt 0:04:43] Black converts the advantage convincingly.} (25. Bxf7+
$15 Kxf7 26. d5 Bxb2 27. Qxb2) 25... Bd5 {[%emt 0:00:00]} 26. Bxf7+ {[%emt 0:
01:48]} Kxf7 {[%emt 0:00:00]} ({And not} 26... Bxf7 27. d5 $15) 27. Qd3 {
[%emt 0:00:53]} Ng6 {[%emt 0:00:14] White must now prevent ...Nf4. Black has
strong compensation.} 28. g3 {[%emt 0:03:49] Prevents Nf4.} Qd7 {[%emt 0:03:53]
} 29. f3 {[%emt 0:01:55]} Ne7 {[%emt 0:00:15]} 30. Re2 {[%emt 0:00:52]} Nc6 {
[%emt 0:01:54]} 31. b4 {[%emt 0:00:43]} Ne7 {[%emt 0:00:43][%cal Yc6e7,Ye7f5,
Yf5d4]} 32. Bc1 {[%emt 0:05:31]} Qc6 {[%emt 0:01:17]} 33. Rf2 {[%emt 0:01:55]}
Bc4 {[%emt 0:01:27] A strong pair of Bishops.} 34. Qe3 {[%emt 0:02:02]} (34.
Qe4 $17) 34... Nf5 {[%emt 0:00:47]} 35. Qf4 {[%emt 0:01:43]} (35. Qe4 Qa4 36.
Rfd2 (36. Re1 $2 Nxd4 37. Bb2 Kg8 $19)) 35... Nxd4 $19 {[%emt 0:02:51] Hoping
for ...Ne2+.} 36. Re1 {[%emt 0:11:38] Against Ne2+} Bd5 {[%emt 0:01:10]} 37.
Kg2 {[%emt 0:04:00]} (37. b5 $142 Qxb5 38. Qg4) 37... g5 {[%emt 0:02:01][%cal
Yg7g5,Yg5g4]} 38. Qg4 {[%emt 0:00:00]} Kg6 {[%emt 0:00:12] Active counter play!
} 39. b5 {[%emt 0:02:01]} Qb7 {[%emt 0:01:00] Strongly threatening ...h5.} 40.
h4 {[%emt 0:00:58]} h5 {[%emt 0:03:20]} 41. Qh3 {[%emt 0:39:08]} g4 {[%emt 0:
30:17]} 42. Qh1 {[%emt 0:00:00]} Nxf3 {[%emt 0:00:13] Black mates.} 43. Qf1 {
[%emt 0:05:34]} Nxe1+ {[%emt 0:02:06]} 44. Kg1 {[%emt 0:00:49]} Nf3+ {[%emt 0:
00:03]} 45. Rxf3 {[%emt 0:01:25]} Bxf3 {[%emt 0:00:00]} 46. Qc4 {[%emt 0:01:26]
} Rd1+ {[%emt 0:00:00]} 47. Kf2 {[%emt 0:00:39]} Bd4+ {[%emt 0:00:08]} 48. Be3
{[%emt 0:00:48]} Bxe3+ {[%emt 0:00:08]} 49. Kxe3 {[%emt 0:00:00]} Qe7+ {
[%emt 0:00:00]} 50. Kf4 {[%emt 0:00:00]} Qf6+ {[%emt 0:00:00]} 51. Ke3 {
[%emt 0:00:00]} Qe5+ {[%emt 0:00:00]} 52. Kf2 {[%emt 0:00:00]} Qe1# {[%emt 0:
00:00] Weighted Error Value: White=0.67/Black=0.15 (very precise)} 0-1

[Event "44th Chess Olympiad Open 2022"]
[Site "Chennai"]
[Date "2022.07.29"]
[Round "1.58"]
[White "Henderson de La Fuente, Lance"]
[Black "Khan, Taffin"]
[Result "1-0"]
[WhiteElo "2490"]
[BlackElo "2019"]
[Annotator "ChessBase"]
[PlyCount "61"]
[EventDate "2022.??.??"]
[TimeControl "60"]

1. d4 {[%emt 0:00:17]} Nf6 {[%emt 0:00:19]} 2. Nf3 {[%emt 0:00:16]} d6 {
[%emt 0:00:23]} 3. Nc3 {[%emt 0:01:30]} Nbd7 {[%emt 0:00:54]} 4. e4 {[%emt 0:
00:00]} e5 {[%emt 0:00:08]} 5. g3 {[%emt 0:00:47]} Be7 {[%emt 0:00:27]} 6. Bg2
{[%emt 0:00:08]} O-O {[%emt 0:01:01]} 7. O-O {[%emt 0:00:15]} c6 {[%emt 0:00:
00]} 8. a4 {[%emt 0:00:07]} b6 {[%emt 0:03:25]} 9. Re1 {[%emt 0:01:36]} a6 {
[%emt 0:00:19]} 10. b3 {[%emt 0:02:41]} Bb7 {[%emt 0:04:08]} 11. Bb2 {[%emt 0:
00:00]} Qc7 {[%emt 0:01:17]} 12. Nb1 {[%emt 0:03:18]} Rfe8 {[%emt 0:03:05]} 13.
Nbd2 {[%emt 0:00:53]} Bf8 {[%emt 0:00:47]} 14. c4 {[%emt 0:01:15]} a5 {[%emt 0:
00:00]} 15. Qc2 {[%emt 0:09:10]} h6 {[%emt 0:06:44]} 16. Rad1 {[%emt 0:01:19]}
Rad8 {[%emt 0:00:50]} 17. c5 {[%emt 0:04:53]} bxc5 {[%emt 0:04:52]} 18. dxe5 {
[%emt 0:00:08]} dxe5 {[%emt 0:00:09]} 19. Nc4 {[%emt 0:00:24]} Ba6 {[%emt 0:00:
00]} 20. Ncxe5 {[%emt 0:07:01]} Nxe5 {[%emt 0:02:27]} 21. Bxe5 {[%emt 0:00:11]}
Qe7 {[%emt 0:01:37]} 22. Rxd8 {[%emt 0:04:46]} Rxd8 {[%emt 0:00:32]} 23. Bc3 {
[%emt 0:05:37]} c4 {[%emt 0:14:26]} 24. bxc4 {[%emt 0:03:42]} Qc5 {[%emt 0:00:
00]} 25. e5 {[%emt 0:01:02]} Ne8 {[%emt 0:03:16]} 26. e6 {[%emt 0:06:15]} fxe6
{[%emt 0:07:01]} 27. Ne5 {[%emt 0:03:06]} Bxc4 {[%emt 0:11:42]} 28. Qg6 {
[%emt 0:00:42]} Nd6 {[%emt 0:01:18]} 29. Ng4 {[%emt 0:03:26]} Kh8 {[%emt 0:00:
00]} 30. Qxh6+ {[%emt 0:00:15]} Kg8 {[%emt 0:00:10]} 31. Qg6 {[%emt 0:00:14]}
1-0

[Event "44th Chess Olympiad Open 2022"]
[Site "Chennai"]
[Date "2022.07.29"]
[Round "1.58"]
[White "Ribera Veganzones, Josep Maria"]
[Black "Nathoo, Loris"]
[Result "1-0"]
[WhiteElo "2228"]
[BlackElo "1695"]
[Annotator "NA RC"]
[PlyCount "55"]
[EventDate "2022.??.??"]
[TimeControl "60"]

1. e4 {[%emt 0:00:04]} c5 {[%emt 0:00:09]} 2. Nf3 {[%emt 0:00:13]} Nc6 {
[%emt 0:00:13]} 3. Bb5 {[%emt 0:00:26]} g6 {[%emt 0:00:28]} 4. O-O {[%emt 0:00:
00]} Bg7 {[%emt 0:01:28]} 5. Re1 {[%emt 0:02:22]} a6 {[%emt 0:01:05]} 6. Bxc6 {
[%emt 0:01:25]} dxc6 {[%emt 0:05:03]} 7. d3 {[%emt 0:01:47]} Nf6 {[%emt 0:00:
00]} 8. h3 {[%emt 0:03:43]} Qc7 {[%emt 0:05:31]} 9. Nc3 {[%emt 0:01:32]} Nd7 {
[%emt 0:04:52]} 10. Be3 {[%emt 0:02:21]} b6 {[%emt 0:03:41]} 11. Qd2 {[%emt 0:
00:00]} h6 {[%emt 0:03:05]} 12. Nh2 {[%emt 0:05:11]} Bb7 {[%emt 0:01:35]} 13.
a4 {[%emt 0:04:50]} O-O-O {[%emt 0:07:45]} 14. f4 {[%emt 0:05:54]} e5 {[%emt 0:
00:00]} 15. Qf2 {[%emt 0:01:53]} a5 {[%emt 0:05:52]} 16. f5 {[%emt 0:01:46]}
Kb8 {[%emt 0:06:29]} 17. fxg6 {[%emt 0:05:26]} fxg6 {[%emt 0:00:10]} 18. Qf7 {
[%emt 0:00:10]} Nf8 {[%emt 0:06:10]} 19. Rf1 {[%emt 0:03:12]} Rd7 {[%emt 0:00:
00]} 20. Qb3 {[%emt 0:01:46]} Ka7 {[%emt 0:03:58]} 21. Rf2 {[%emt 0:00:54]} Qd6
{[%emt 0:03:20]} 22. Raf1 {[%emt 0:02:13]} Ne6 {[%emt 0:03:22]} 23. Ne2 {
[%emt 0:06:17]} Rf8 {[%emt 0:08:20]} 24. Rxf8 {[%emt 0:00:54]} Nxf8 {[%emt 0:
00:00]} 25. Qg8 {[%emt 0:01:41]} Qe7 {[%emt 0:02:25]} 26. Ng4 {[%emt 0:05:24]}
g5 {[%emt 0:03:43]} 27. Ng3 {[%emt 0:00:35]} Qe6 {[%emt 0:00:42]} 28. Rxf8 {
[%emt 0:00:47]} 1-0

[Event "44th Chess Olympiad Open 2022"]
[Site "Chennai"]
[Date "2022.07.29"]
[Round "1.58"]
[White "Drayton, Anthony"]
[Black "Fluvia Poyatos, Jordi"]
[Result "1-0"]
[WhiteElo "1928"]
[BlackElo "2451"]
[Annotator "TA"]
[PlyCount "69"]
[EventDate "2022.??.??"]
[TimeControl "60"]

{[%evp 9,69,44,44,14,24,22,69,41,50,44,56,73,66,67,56,62,63,75,70,61,60,60,169,
164,179,123,316,290,261,54,54,54,58,52,44,54,109,125,87,-59,-66,-74,-55,-84,
-117,-108,-100,-91,730,733,762,643,29990,29991,29991,696,29983,564,29993,29994,
29994,29987]} 1. d4 {[%emt 0:00:06]} d6 {[%emt 0:00:57]} 2. Bf4 {[%emt 0:00:39]
} g6 {[%emt 0:02:08]} 3. Nc3 {[%emt 0:01:10]} Bg7 {[%emt 0:00:49]} 4. e4 {
[%emt 0:01:29]} a6 {[%emt 0:01:08]} 5. Qd2 {[%emt 0:01:43]} b5 {[%emt 0:03:16]}
6. a3 {[%emt 0:05:35] B06: Modern Defence.} Bb7 {[%emt 0:01:09]} 7. f3 {
[%emt 0:00:31] [#]} Nc6 $146 {[%emt 0:03:59]} (7... Nd7 $11 {is superior.}) ({
Predecessor:} 7... Nd7 8. O-O-O c5 9. Nge2 cxd4 10. Nxd4 Bxd4 11. Qxd4 e5 12.
Qxd6 exf4 13. Nxb5 axb5 14. Bxb5 {½-½ (55) Orozbaev,E (1973)-Gajewski,G 
(2616) Chess.com INT 2020}) 8. Nge2 {[%emt 0:02:18] White is slightly better.}
e5 {[%emt 0:05:04]} 9. Bg5 {[%emt 0:03:36]} Qd7 {[%emt 0:19:31][%cal Rc6d4]}
10. d5 {[%emt 0:06:00]} Nce7 {[%emt 0:01:01]} 11. g4 {[%emt 0:00:49]} h5 {
[%emt 0:03:50]} 12. gxh5 {[%emt 0:05:14]} f6 {[%emt 0:02:14]} 13. Be3 {[%emt 0:
00:00]} Rxh5 {[%emt 0:00:49]} 14. h4 {[%emt 0:04:57]} f5 {[%emt 0:04:02]} 15.
Bg5 {[%emt 0:00:32]} c6 {[%emt 0:09:11]} (15... Bf6 $14 16. f4 Bxg5 17. fxg5 c6
) 16. dxc6 $18 {[%emt 0:04:29]} Bxc6 {[%emt 0:01:09]} 17. O-O-O {[%emt 0:00:32]
} (17. Ng3 $18) 17... Rd8 $2 {[%emt 0:01:09]} (17... Bf6 $16 18. Bg2 Bxg5 19.
hxg5 Rxh1 20. Bxh1 (20. Rxh1 d5 $14) 20... a5) 18. Ng3 {[%emt 0:01:38]} Rh8 {
[%emt 0:01:18]} 19. h5 $2 {[%emt 0:00:29]} (19. Bh3 $1 $18) 19... f4 $14 {
[%emt 0:02:58]} 20. Bh3 {[%emt 0:03:04]} Qa7 {[%emt 0:02:01] [#]} 21. Be6 $1 {
[%emt 0:07:14][%cal Yh5g6] Black must now prevent hxg6!} fxg3 {[%emt 0:09:23]}
22. h6 $1 {[%emt 0:00:15]} g2 {[%emt 0:00:52]} (22... Nxh6 $14 23. Be3 Qc7) 23.
Qxg2 $40 {[%emt 0:01:08] White attacks with force. Really sharp!} Nxh6 {
[%emt 0:04:32] [#]} 24. Nd5 {[%emt 0:04:02] 0x0.001eb869b22cdp-1022s more
active pieces. The black rooks are badly placed.} (24. Kb1 $1 $16) 24... Bxd5
$15 {[%emt 0:01:00]} 25. exd5 {[%emt 0:00:20]} Nf7 {[%emt 0:04:44] Hoping for .
..Rxh1.} 26. Rxh8+ {[%emt 0:00:28]} Bxh8 {[%emt 0:00:38]} 27. Rh1 {[%emt 0:00:
52] [#] aiming for Rh7.} Bg7 $1 {[%emt 0:01:26]} 28. Rh7 {[%emt 0:00:00]} Kf8 {
[%emt 0:03:15] [#]} (28... Nxg5 $17 29. Qxg5 Kf8) 29. Bf6 $3 $18 {[%emt 0:00:
16] Pin. This bishop pair is nice.} Qe3+ {[%emt 0:07:34]} (29... Bxf6 30. Rxf7+
) 30. Kb1 {[%emt 0:00:12]} Bxf6 {[%emt 0:00:00]} 31. Rxf7+ {[%emt 0:00:09]} Ke8
{[%emt 0:00:44]} 32. Rxf6 {[%emt 0:00:00]} (32. Rxe7+ $142 Kxe7 33. Qxg6 Qg1+
34. Qxg1 Bh8 35. Qg5+ Bf6 36. Qg6 Rf8 37. Qh7+ Bg7 38. Qxg7+ Rf7 39. Qxf7+ Kd8
40. Qd7#) 32... Rb8 {[%emt 0:01:46]} 33. Rxg6 {[%emt 0:01:47]} (33. Qh1 $142
Kd8 34. Qh7 Rb7 35. Rf8+ Kc7 36. Qxe7+ Kb6 37. Qxd6+ Ka7 38. Qd8) 33... Nxg6 {
[%emt 0:00:48]} 34. Qxg6+ {[%emt 0:00:00]} Kd8 {[%emt 0:00:04]} 35. Qg7 {
[%emt 0:00:31] Weighted Error Value: White=0.68/Black=0.78} 1-0

[Event "44th Chess Olympiad Open 2022"]
[Site "Chennai"]
[Date "2022.07.29"]
[Round "1.58"]
[White "Neto, Roberto"]
[Black "Ribera Veganzones, Serni"]
[Result "0-1"]
[WhiteElo "1663"]
[BlackElo "2203"]
[Annotator "RC"]
[PlyCount "59"]
[EventDate "2022.??.??"]
[TimeControl "60"]

1. e4 {[%emt 0:00:33]} c5 {[%emt 0:00:11]} 2. Nf3 {[%emt 0:00:41]} Nc6 {
[%emt 0:00:33]} 3. d4 {[%emt 0:00:06]} cxd4 {[%emt 0:00:10]} 4. Nxd4 {[%emt 0:
00:00]} e6 {[%emt 0:00:13]} 5. Bc4 {[%emt 0:16:12]} Nf6 {[%emt 0:02:35]} 6.
Nxc6 {[%emt 0:10:59]} bxc6 {[%emt 0:05:27]} 7. Nd2 {[%emt 0:12:20]} Qc7 {
[%emt 0:03:11]} 8. O-O {[%emt 0:02:02]} Be7 {[%emt 0:00:26]} 9. f4 {[%emt 0:00:
00]} d5 {[%emt 0:01:04]} 10. Bd3 {[%emt 0:06:26]} O-O {[%emt 0:02:09]} 11. e5 {
[%emt 0:01:05]} Nd7 {[%emt 0:00:39]} 12. Qh5 {[%emt 0:12:45]} g6 {[%emt 0:00:
00]} 13. Qh3 {[%emt 0:04:44]} Bb7 {[%emt 0:07:08]} 14. Nf3 {[%emt 0:06:41]} Nc5
{[%emt 0:02:54]} 15. Be3 {[%emt 0:04:05]} Ne4 {[%emt 0:10:22]} 16. Bxe4 {
[%emt 0:01:12]} dxe4 {[%emt 0:00:03]} 17. Ng5 {[%emt 0:01:18]} Bxg5 {[%emt 0:
00:00]} 18. fxg5 {[%emt 0:00:10]} Qxe5 {[%emt 0:00:21]} 19. c3 {[%emt 0:01:51]}
c5 {[%emt 0:02:35]} 20. Bf4 {[%emt 0:01:33]} Qg7 {[%emt 0:05:04]} 21. Bd6 {
[%emt 0:00:54]} Rfd8 {[%emt 0:09:47]} 22. Bxc5 {[%emt 0:01:12]} Rd2 {[%emt 0:
00:00]} 23. Qe3 {[%emt 0:01:21]} Rd3 {[%emt 0:04:30]} 24. Qf4 {[%emt 0:00:36]}
e5 {[%emt 0:01:52]} 25. Qg4 {[%emt 0:00:42]} Rad8 {[%emt 0:03:52]} 26. Be7 {
[%emt 0:00:51]} R8d7 {[%emt 0:00:45]} 27. Bf6 {[%emt 0:00:14]} Qf8 {[%emt 0:00:
00]} 28. Bxe5 {[%emt 0:00:43]} e3 {[%emt 0:02:42]} 29. Rad1 {[%emt 0:00:40]}
Rd2 {[%emt 0:00:15]} 30. Rxd2 {[%emt 0:00:00]} 0-1